bitfinex/quotes_ETHUSD_20241207
["timestamp","ask_amount","ask_price","bid_price","bid_amount"]
[1733590907733,0.16369654,3998.6,3998.0,1.75086]
[1733590907973,0.7895,3998.7,3998.0,1.75086]
[1733590908680,0.7895,3998.7,3998.1,1.7508]
[1733590908833,0.7895,3998.7,3998.2,1.75075]
[1733590911963,0.7895,3998.7,3998.0,1.75084]
[1733590912534,0.7895,3998.7,3997.8,0.625]
[1733590912835,0.7895,3998.7,3998.1,1.75079]
[1733590913030,0.7895,3998.7,3998.0,1.75086]
[1733590913276,0.7895,3998.7,3998.1,1.75081]
[1733590914338,0.7895,3998.7,3997.7,1.75097]
[1733590914533,0.7895,3998.7,3998.1,1.7508]
[1733590914835,0.7895,3998.7,3997.6,0.7984]
[1733590915066,0.7895,3998.7,3998.1,1.75082]
[1733590917430,1.08002044,3998.7,3997.8,1.75095]
[1733590917672,0.7998,3998.6,3997.8,1.75095]
[1733590917889,1.07252859,3998.6,3997.8,1.75095]
[1733590919197,0.7998,3998.5,3997.6,1.75104]
[1733590919690,0.7998,3998.3,3997.6,1.75104]
[1733590921084,0.7998,3998.3,3997.1,1.04638537]
[1733590921287,0.7998,3998.3,3997.6,1.75102]
[1733590921494,1.0150549,3998.3,3997.7,1.75099]
[1733590921651,1.0150549,3998.3,3997.1,1.04638537]
[1733590921998,1.0150549,3998.3,3997.5,1.75107]
[1733590922447,0.7998,3998.3,3998.0,1.75087]
[1733590922656,0.7555,3998.7,3998.0,1.75087]
[1733590923086,0.7555,3998.7,3997.5,1.04638537]
[1733590923295,0.7555,3998.7,3997.9,1.7509]
[1733590923480,0.7555,3998.7,3998.4,1.75066]
[1733590923650,0.84746543,3998.9,3998.4,1.75066]
[1733590923988,1.04944515,3998.9,3998.1,0.7738]
[1733590924491,0.7555,3998.8,3997.9,1.75091]
[1733590924790,0.7555,3998.8,3998.1,1.7508]
[1733590924989,0.7555,3998.8,3997.8,1.04638537]
[1733590925197,0.7555,3998.8,3998.2,1.75077]
[1733590925416,0.7555,3998.8,3997.8,1.0713962]
[1733590925615,0.7555,3998.8,3997.9,2.20035225]
[1733590925904,0.7555,3998.8,3997.9,3.24673762]
[1733590926065,0.7555,3998.8,3998.0,1.75087]
[1733590926274,0.84746543,3998.9,3998.6,1.75059]
[1733590928513,0.84746543,3998.9,3998.4,1.75068]
[1733590929210,0.84746543,3998.9,3998.1,1.04638537]
[1733590929372,0.84746543,3998.9,3998.2,1.75078]
[1733590929817,0.84746543,3998.9,3998.1,1.04638537]
[1733590929976,0.84746543,3998.9,3998.4,1.75069]
[1733590930371,0.84746543,3998.9,3998.1,1.04638537]
[1733590930580,0.84746543,3998.9,3998.2,1.75078]
[1733590930909,0.84746543,3998.9,3998.3,1.75072]
[1733590931684,0.84746543,3998.9,3998.4,1.75069]
[1733590932221,0.84746543,3998.9,3998.0,1.04638537]
[1733590932222,1.08002044,3998.5,3998.0,1.04638537]
[1733590932378,0.7555,3998.4,3997.9,1.67138537]
[1733590932579,0.7555,3998.4,3997.9,0.625]
[1733590942115,1.75074,3998.4,3997.9,0.625]
[1733590942436,1.08002044,3998.2,3997.9,0.625]
[1733590942603,0.8037,3998.0,3997.9,0.625]
[1733590943390,2.55457,3998.0,3997.9,0.625]
[1733590955844,0.8037,3998.0,3997.9,0.625]
[1733590957650,2.55457,3998.0,3997.9,0.625]
[1733590966663,1.75087,3998.0,3997.9,0.625]
[1733590967382,2.41688904,3998.0,3997.9,0.625]
[1733590968300,0.66601904,3998.0,3997.9,0.625]
[1733590970077,2.41688904,3998.0,3997.9,0.625]
[1733590974691,2.96688904,3998.0,3997.9,0.625]
[1733590975301,7.84335293,3998.0,3997.9,0.625]
[1733590976339,6.79618904,3998.0,3997.9,0.625]
[1733590977622,8.36693488,3998.0,3997.9,0.625]
[1733590979401,6.79618904,3998.0,3997.9,0.625]
[1733590979606,8.36834664,3998.0,3997.9,0.625]
[1733590979909,6.79618904,3998.0,3997.9,0.625]
[1733590980108,8.36834934,3998.0,3997.9,0.625]
[1733590980538,6.79618904,3998.0,3997.9,0.625]
[1733590980844,8.52949718,3998.0,3997.9,0.625]
[1733590981246,6.79618904,3998.0,3997.9,0.625]
[1733590981408,8.52949718,3998.0,3997.9,0.625]
[1733590981613,6.79618904,3998.0,3997.9,0.625]
[1733590982051,8.52949718,3998.0,3997.9,0.625]
[1733590982606,6.79618904,3998.0,3997.9,0.625]
[1733590983013,8.52949718,3998.0,3997.9,0.625]
[1733590983766,6.79618904,3998.0,3997.9,0.625]
[1733590984246,10.49678121,3998.0,3997.9,0.625]
[1733590984423,9.97235661,3998.0,3997.9,0.625]
[1733590984621,9.60951762,3998.0,3997.9,0.625]
[1733590985334,12.23008935,3998.0,3997.9,0.625]
[1733590986062,12.23065272,3998.0,3997.9,0.625]
[1733590987434,9.60951762,3998.0,3997.9,0.625]
[1733590991481,1.75113,3997.5,3996.6,0.7542]
[1733590991786,1.0483355,3997.3,3996.6,0.7542]
[1733590992075,1.5983355,3997.4,3996.7,0.250576]
[1733590992231,1.5983355,3997.4,3996.8,0.7542]
[1733590992432,1.0483355,3997.3,3996.8,0.7542]
[1733590992633,1.5983355,3997.4,3996.8,0.7542]
[1733590992854,1.75118,3997.3,3996.8,0.7542]
[1733590993085,2.7995155,3997.3,3996.8,0.7542]
[1733590993269,1.0483355,3997.3,3996.8,0.7542]
[1733590993469,3.32360326,3997.5,3996.8,0.7542]
[1733590993470,1.0483355,3997.5,3996.8,0.7542]
[1733590993752,0.55,3997.5,3996.8,0.7542]
[1733590994297,1.0483355,3997.6,3996.9,0.7542]
[1733590994487,1.0483355,3997.6,3997.1,0.7542]
[1733590994676,1.57250326,3997.8,3997.1,0.7542]
[1733590994677,1.0483355,3997.8,3997.1,0.7542]
[1733590994871,1.0483355,3997.9,3997.2,1.75121]
[1733590995093,1.08002044,3998.4,3997.3,1.926261]
[1733590995094,1.0483355,3998.0,3997.3,1.926261]
[1733590995248,1.0483355,3998.1,3997.7,0.7542]
[1733590995452,1.0483355,3998.2,3997.7,0.7542]
[1733590995689,1.0483355,3998.3,3997.7,0.7542]
[1733590995986,1.0483355,3998.4,3997.7,0.7542]
[1733590996148,1.0483355,3998.4,3997.8,0.7542]
[1733590998953,1.0483355,3998.5,3997.8,0.7542]
[1733590999596,1.0483355,3998.6,3997.8,0.7542]
[1733590999768,1.0483355,3998.7,3998.1,1.75082]
[1733591000096,1.0483355,3998.7,3998.2,0.7542]
[1733591000462,1.0483355,3998.8,3998.2,1.75078]
[1733591000677,1.0483355,3998.8,3998.3,0.7542]
[1733591001301,1.0483355,3998.9,3998.3,0.7542]
[1733591001605,0.4168318,3999.0,3998.3,0.7542]
[1733591001775,0.4168318,3999.0,3998.4,0.7727]
[1733591005019,0.4168318,3999.0,3998.4,2.52339]
[1733591005684,0.4168318,3999.0,3998.5,1.75065]
[1733591005891,0.4168318,3999.0,3998.6,2.52328]
[1733591006087,0.4168318,3999.0,3998.5,1.08002044]
[1733591006388,0.4168318,3999.0,3998.8,0.7727]
[1733591006585,0.4168318,3999.0,3998.8,2.52322]
[1733591006810,0.4168318,3999.0,3998.9,0.7727]
[1733591018016,0.4168318,3999.0,3998.6,0.7807]
[1733591018917,2.1672718,3999.0,3998.6,0.7807]
[1733591019406,1.75055,3998.8,3998.6,0.7807]
[1733591019721,1.75055,3998.8,3997.9,0.7807]
[1733591022309,1.75048,3998.9,3997.9,0.7807]
[1733591023001,0.4168318,3999.0,3997.9,2.53161]
[1733591023205,1.75028,3999.4,3998.4,1.08002044]
[1733591023390,1.75028,3999.4,3998.5,0.769]
[1733591024291,3.0,3999.7,3998.5,0.769]
[1733591024484,1.7503,3999.3,3998.5,0.769]
[1733591027892,3.55,3999.7,3998.5,0.769]
[1733591028096,0.64754559,3999.6,3998.5,1.75065]
[1733591028297,0.55,3999.7,3998.6,0.769]
[1733591028601,1.75022,3999.5,3998.6,0.769]
[1733591028787,3.55,3999.7,3998.6,0.769]
[1733591028991,0.55,3999.7,3998.6,0.769]
[1733591029861,1.75017,3999.6,3998.6,0.769]
[1733591030835,1.75007,3999.9,3998.8,0.769]
[1733591031003,2.54386194,4000.1,3999.1,0.769]
[1733591031366,2.54386194,4000.1,3999.2,0.769]
[1733591031367,0.79390194,4000.1,3999.2,0.769]
[1733591033749,0.79390194,4000.1,3999.3,0.7833]
[1733591035429,2.54385194,4000.1,3999.3,0.7833]
[1733591036523,1.75,4000.0,3999.3,0.7833]
[1733591036727,0.79390194,4000.1,3999.3,0.7833]
[1733591037037,0.79390194,4000.1,3999.3,1.14467404]
[1733591041231,1.84223744,4000.1,3999.4,0.7833]
[1733591042548,1.0483355,4000.1,3999.4,0.7833]
[1733591043367,2.7982955,4000.1,3999.4,0.7833]
[1733591044230,1.0483355,4000.0,3999.4,0.7833]
[1733591044746,1.74996,4000.1,3999.4,0.7833]
[1733591044747,2.7982955,4000.1,3999.4,0.7833]
[1733591045307,1.0483355,4000.0,3999.4,0.7833]
[1733591045758,1.0483355,4000.1,3999.4,0.7833]
[1733591045910,1.74992,4000.2,3999.4,0.7833]
[1733591045911,1.0483355,4000.0,3999.4,0.7833]
[1733591046247,1.0483355,4000.1,3999.4,0.7833]
[1733591046615,1.0483355,4000.0,3999.4,0.7833]
[1733591047146,1.0483355,4000.1,3999.4,0.7833]
[1733591047342,1.0483355,4000.0,3999.4,0.7833]
[1733591047550,1.0483355,4000.1,3999.4,0.7833]
[1733591048424,1.0483355,4000.1,3999.4,1.18330764]
[1733591048622,2.7982955,4000.1,3999.4,1.18330764]
[1733591048809,1.75,4000.0,3999.4,0.7833]
[1733591049720,1.0483355,4000.1,3999.4,0.7833]
[1733591050046,2.7982955,4000.1,3999.4,0.7833]
[1733591050358,1.0483355,4000.2,3999.9,0.7658]
[1733591050671,1.0483355,4000.5,4000.2,0.7658]
[1733591050860,1.0483355,4000.7,4000.2,0.7658]
[1733591051359,1.0483355,4000.8,4000.2,0.7658]
[1733591052770,1.0483355,4000.9,4000.2,0.7658]
[1733591053930,2.7979455,4000.9,4000.2,0.7658]
[1733591054128,1.74965,4000.8,4000.2,0.7658]
[1733591054361,1.74973,4000.7,4000.2,0.7658]
[1733591054524,1.0483355,4000.9,4000.2,0.7658]
[1733591054724,0.517284,4000.8,4000.2,0.7658]
[1733591054974,1.74982,4000.4,3999.2,0.7658]
[1733591055122,1.74982,4000.4,3999.5,0.7658]
[1733591055529,0.55,4000.4,3999.5,0.7658]
[1733591055772,1.5983355,4000.4,3999.5,0.7658]
[1733591055984,0.55,4000.2,3998.8,0.7658]
[1733591056264,1.5983355,4000.2,3998.8,1.84582044]
[1733591056837,1.75026,3999.4,3998.8,0.7658]
[1733591057100,0.55,3999.8,3998.8,0.7658]
[1733591057407,0.44283959,3999.7,3998.8,0.7658]
[1733591058327,1.75028,3999.4,3998.8,0.7658]
[1733591060664,0.44283959,3999.7,3998.8,0.7658]
[1733591060665,1.75036,3999.2,3998.8,0.7658]
[1733591062158,1.75043,3999.0,3998.8,0.7658]
[1733591062708,1.75048,3998.9,3998.2,0.7926]
[1733591062903,1.75048,3998.9,3998.2,0.97986204]
[1733591063344,1.75026,3999.4,3998.2,0.97986204]
[1733591063345,1.75042,3999.1,3998.2,0.97986204]
[1733591063833,1.75044,3999.0,3998.2,0.97986204]
[1733591065008,1.0483355,3999.5,3998.2,0.97986204]
[1733591065217,1.75041,3999.1,3998.2,0.97986204]
[1733591066030,1.75031,3999.3,3998.3,0.20598825]
[1733591066246,1.75031,3999.3,3998.4,0.7926]
[1733591067358,1.75032,3999.3,3998.4,0.7926]
[1733591067640,1.75032,3999.3,3998.4,1.87262044]
[1733591068003,1.0483355,3999.6,3998.5,0.7926]
[1733591068203,1.75023,3999.5,3998.5,0.7926]
[1733591068416,1.7503,3999.4,3998.5,0.7926]
[1733591068706,1.75033,3999.3,3998.5,0.7926]
[1733591068939,2.01534285,3999.7,3998.5,0.7926]
[1733591068940,1.75035,3999.2,3998.5,0.7926]
[1733591071197,1.75035,3999.2,3998.5,1.01918707]
[1733591071825,0.55,3999.4,3998.5,1.01918707]
[1733591072046,2.30026,3999.4,3998.5,1.01918707]
[1733591072539,0.55,3999.4,3998.5,1.01918707]
[1733591072845,0.55,3999.2,3998.5,1.01918707]
[1733591073023,2.30035,3999.2,3998.5,1.01918707]
[1733591073409,0.55,3999.1,3998.5,0.7926]
[1733591073710,0.55,3999.0,3998.5,0.7926]
[1733591074275,2.3003,3999.3,3998.5,0.7926]
[1733591074466,0.55,3999.1,3998.5,0.7926]
[1733591077917,0.55,3998.9,3998.5,0.7926]
[1733591078845,0.55,3999.1,3998.5,0.7926]
[1733591079563,0.55,3999.0,3998.5,0.7926]
[1733591080642,1.75045,3999.0,3998.5,0.7926]
[1733591080855,0.55,3998.9,3998.5,0.7926]
[1733591081154,2.30049,3998.9,3998.5,0.7926]
[1733591081306,0.230049,3998.8,3998.5,0.7926]
[1733591081511,2.7986355,3999.4,3997.7,1.75099]
[1733591081512,0.55,3999.0,3997.9,0.7599]
[1733591081923,1.7507,3998.4,3997.9,0.7599]
[1733591082122,0.55,3999.0,3997.9,0.7599]
[1733591082123,0.55,3998.2,3997.9,0.7599]
[1733591082720,1.88322044,3999.1,3997.9,0.7599]
[1733591082721,0.55,3998.4,3997.9,0.7599]
[1733591083335,2.3007,3998.4,3997.9,0.7599]
[1733591085653,1.75066,3998.5,3997.9,0.7599]
[1733591085949,2.3007,3998.4,3997.9,0.7599]
[1733591086770,1.7507,3998.4,3997.9,0.7599]
[1733591088661,1.75059,3998.7,3997.9,0.7599]
[1733591088924,0.55,3998.9,3997.9,0.7599]
[1733591089149,1.7507,3998.4,3997.9,0.7599]
[1733591089934,1.75061,3998.6,3997.9,0.7599]
[1733591090164,1.75076,3998.3,3997.9,0.7599]
[1733591090667,1.75083,3998.1,3997.9,0.7599]
[1733591090964,1.925973,3998.0,3997.4,0.7599]
[1733591091161,1.75089,3998.0,3997.4,0.7599]
[1733591092073,0.55,3998.2,3997.4,0.7599]
[1733591092367,2.30081,3998.2,3997.4,0.7599]
[1733591092523,0.33808304,3998.1,3997.4,0.7599]
[1733591092732,1.751,3997.8,3997.4,0.7599]
[1733591093152,0.33808304,3998.1,3997.4,0.7599]
[1733591093153,1.75103,3997.7,3997.4,0.7599]
[1733591093878,0.55,3998.0,3997.4,0.7599]
[1733591094371,1.75098,3997.8,3997.4,0.7599]
[1733591095181,1.75081,3998.2,3997.4,0.7599]
[1733591095182,1.75078,3998.2,3997.4,0.7599]
[1733591096584,1.75078,3998.2,3997.4,1.11901704]
[1733591096753,1.75083,3998.1,3997.4,1.11901704]
[1733591097551,1.751,3997.7,3996.9,0.7599]
[1733591098158,0.8032,3998.0,3996.9,0.7599]
[1733591098363,2.30092,3997.9,3996.9,0.7599]
[1733591099002,1.75092,3997.9,3996.9,0.7599]
[1733591099905,1.08002044,3998.2,3996.9,0.7599]
[1733591100204,0.55,3998.2,3997.2,0.7599]
[1733591100359,1.08002044,3998.5,3997.0,0.28863058]
[1733591100360,0.55,3998.4,3997.4,1.83992044]
[1733591100563,1.75071,3998.4,3997.5,0.7599]
[1733591100891,1.75074,3998.3,3997.5,0.7599]
[1733591101196,1.75074,3998.3,3997.5,0.94389204]
[1733591101404,2.30069,3998.5,3997.5,0.94389204]
[1733591102402,1.7507,3998.4,3997.5,0.94389204]
[1733591103903,2.7988955,3998.8,3997.8,0.7724]
[1733591104105,1.75056,3998.8,3997.8,0.7724]
[1733591104261,1.75056,3998.8,3998.0,0.7724]
[1733591105158,1.7506,3998.7,3998.0,0.7724]
[1733591105856,2.89125594,3999.0,3998.0,0.7724]
[1733591106061,1.75054,3998.8,3998.0,0.7724]
[1733591106370,1.75057,3998.7,3998.0,0.7724]
[1733591107402,2.7988155,3998.9,3998.0,0.7724]
[1733591107560,1.75048,3998.9,3998.0,0.7724]
[1733591107759,1.75048,3998.9,3998.0,1.024735]
[1733591108167,2.7988155,3998.9,3998.0,1.024735]
[1733591108361,1.75048,3998.9,3998.0,1.024735]
[1733591108588,1.84292044,3999.0,3998.0,1.024735]
[1733591109542,1.0483355,3999.1,3998.1,1.75082]
[1733591109796,5.7986855,3999.2,3998.2,0.7724]
[1733591111003,4.0483355,3999.2,3998.3,0.7724]
[1733591111209,3.0,3999.2,3998.3,0.7724]
[1733591111802,5.7986955,3999.2,3998.3,0.7724]
[1733591112095,6.72010742,3999.2,3998.3,0.7724]
[1733591112500,4.96974742,3999.2,3998.3,0.7724]
[1733591112796,3.92141192,3999.2,3998.3,0.7724]
[1733591113763,1.08002044,3999.0,3998.3,0.7724]
[1733591117595,4.0483355,3999.2,3998.3,0.7724]
[1733591117770,1.0483355,3999.2,3998.3,2.52314]
[1733591118608,1.0483355,3999.2,3998.3,0.7724]
[1733591118609,1.89344742,3999.2,3998.3,0.7724]
[1733591118780,3.64379742,3999.2,3998.3,0.7724]
[1733591119373,1.89344742,3999.2,3998.3,0.7724]
[1733591119581,1.0483355,3999.2,3998.3,0.7724]
[1733591119773,1.0483355,3999.2,3998.3,2.52313]
[1733591120929,1.0483355,3999.1,3998.3,2.52313]
[1733591121129,5.6525237,3999.3,3998.3,2.52313]
[1733591121130,1.0483355,3999.0,3998.3,2.52313]
[1733591122514,1.0483355,3999.0,3998.3,2.775443]
[1733591124214,1.0483355,3998.9,3998.3,2.775443]
[1733591124603,1.0483355,3999.0,3998.3,2.775443]
[1733591125016,1.0483355,3998.9,3998.3,2.775443]
[1733591125703,1.0483355,3999.0,3998.3,2.775443]
[1733591126040,1.0483355,3998.9,3998.3,2.775443]
[1733591126594,1.0483355,3998.9,3998.3,1.024713]
[1733591126824,1.0483355,3998.9,3998.3,0.7724]
[1733591127341,1.0483355,3998.9,3998.3,2.5231]
[1733591128726,1.0483355,3999.0,3998.3,2.5231]
[1733591129101,1.0483355,3998.9,3998.3,2.5231]
[1733591130126,1.0483355,3999.0,3998.3,2.5231]
[1733591131418,0.91579586,3999.0,3998.3,2.5231]
[1733591132894,1.57250326,3999.1,3998.3,0.7724]
[1733591133057,2.52244973,3999.1,3998.3,0.7724]
[1733591134009,0.94994647,3999.1,3998.3,2.5231]
[1733591134190,1.57250326,3999.2,3998.4,1.75068]
[1733591134399,1.57250326,3999.2,3998.3,0.7724]
[1733591134979,1.57250326,3999.2,3998.4,1.75069]
[1733591135161,5.6525237,3999.3,3998.4,1.75069]
[1733591135564,1.57250326,3999.2,3998.4,1.75069]
[1733591135782,2.6525237,3999.3,3998.4,1.75069]
[1733591135988,1.57250326,3999.3,3998.5,0.81490867]
[1733591136307,1.57250326,3999.5,3998.6,0.7899]
[1733591136513,1.57250326,3999.6,3998.6,0.7899]
[1733591137011,2.09667101,3999.8,3998.5,0.02500663]
[1733591137012,1.57250326,3999.7,3998.9,0.7899]
[1733591137209,2.09667101,3999.8,3998.9,0.7899]
[1733591137210,1.57250326,3999.8,3998.9,0.7899]
[1733591137373,3.94991947,3999.7,3998.9,0.7899]
[1733591138174,6.60244317,3999.7,3998.9,0.7899]
[1733591138809,4.57250326,3999.6,3998.9,0.7899]
[1733591139716,1.57250326,3999.6,3998.9,0.7899]
[1733591139890,4.57250326,3999.6,3998.9,0.7899]
[1733591140092,1.08002044,3999.4,3998.9,0.7899]
[1733591141384,2.12803165,3999.4,3998.4,0.7899]
[1733591141775,1.04801121,3999.3,3998.4,0.7899]
[1733591143577,1.04801121,3999.3,3998.4,2.54059]
[1733591144674,1.04801121,3999.3,3998.4,0.7899]
[1733591144874,1.59957674,3999.3,3998.4,0.7899]
[1733591147380,1.04801121,3999.2,3998.4,0.7899]
[1733591148298,1.04801121,3999.3,3998.4,0.7899]
[1733591150613,1.04801121,3999.3,3998.4,2.54059]
[1733591151055,2.83029044,3999.4,3998.4,0.7899]
[1733591151246,0.36004904,3999.3,3998.4,0.7899]
[1733591152160,1.40873314,3999.3,3998.4,0.7899]
[1733591152333,1.0486841,3999.2,3998.4,0.7899]
[1733591152676,1.0486841,3999.2,3998.4,2.54059]
[1733591155057,1.0486841,3999.2,3998.4,0.7899]
[1733591157329,1.0486841,3999.3,3998.4,0.7899]
[1733591158181,1.0486841,3999.2,3998.4,0.7899]
[1733591159536,1.0486841,3999.3,3998.4,0.7899]
[1733591159928,1.0486841,3999.2,3998.4,0.7899]
[1733591160616,2.7989941,3999.3,3998.4,0.7899]
[1733591160817,1.0486841,3999.2,3998.4,0.7899]
[1733591161039,2.7989941,3999.3,3998.4,0.7899]
[1733591161637,1.0486841,3999.1,3998.4,0.7899]
[1733591161966,1.0486841,3999.0,3998.4,0.7899]
[1733591162826,2.7991241,3999.0,3998.4,0.7899]
[1733591163055,1.59390117,3998.9,3998.4,0.7899]
[1733591163361,1.59390117,3998.9,3998.1,0.7831]
[1733591163362,3.34441117,3998.9,3998.1,0.7831]
[1733591163556,1.75057,3998.7,3998.1,0.7831]
[1733591163933,2.12870454,3998.8,3998.1,0.7831]
[1733591163934,1.75062,3998.6,3998.1,0.7831]
[1733591164139,0.7759,3998.5,3997.9,1.04829607]
[1733591164461,1.8245841,3998.5,3997.7,0.7831]
[1733591165251,1.0486841,3998.6,3997.7,0.7831]
[1733591170658,1.0486841,3998.5,3997.7,0.7831]
[1733591172066,2.7993441,3998.5,3997.7,0.7831]
[1733591172378,1.48592112,3998.4,3997.7,0.7831]
[1733591172829,3.23664112,3998.4,3997.7,0.7831]
[1733591173850,0.43723702,3998.4,3997.7,0.7831]
[1733591174051,1.0486841,3998.5,3997.7,0.7831]
[1733591174984,1.7507,3998.4,3997.7,0.7831]
[1733591176156,1.0486841,3998.5,3997.7,0.7831]
[1733591176361,1.75062,3998.6,3997.7,0.7831]
[1733591179261,1.0486841,3998.6,3997.7,0.7831]
[1733591179458,1.0486841,3998.7,3997.7,0.7831]
[1733591179700,2.7992541,3998.7,3997.7,0.7831]
[1733591180899,2.7993141,3998.6,3997.7,0.7831]
[1733591181289,1.75063,3998.6,3997.7,0.7831]
[1733591182171,2.7993141,3998.6,3997.7,0.253418]
[1733591182413,1.0486841,3998.7,3997.8,0.8013]
[1733591182722,1.0486841,3998.8,3998.0,0.8013]
[1733591183275,2.7991641,3998.9,3998.0,0.8013]
[1733591183579,2.7992041,3998.8,3998.0,0.8013]
[1733591183916,1.75052,3998.8,3998.0,0.8013]
[1733591184215,3.4096587,3998.8,3998.0,0.8013]
[1733591185014,0.6104546,3998.8,3998.0,0.8013]
[1733591185189,1.0486841,3998.9,3998.0,0.8013]
[1733591185190,2.7991641,3998.9,3998.0,0.8013]
[1733591185586,1.75053,3998.8,3998.0,0.8013]
[1733591185790,2.7992141,3998.8,3998.0,0.8013]
[1733591186002,1.0486841,3998.7,3998.0,0.8013]
[1733591186173,2.7992141,3998.8,3998.0,0.8013]
[1733591187234,3.53643813,3998.8,3998.0,0.8013]
[1733591190907,1.0486841,3998.7,3998.0,0.8013]
[1733591191108,3.53643813,3998.8,3998.0,0.8013]
[1733591193822,1.0486841,3998.7,3998.0,0.8013]
[1733591194529,3.53643813,3998.8,3998.0,0.8013]
[1733591196117,1.0486841,3998.7,3998.0,0.8013]
[1733591196317,3.53643813,3998.8,3998.0,0.8013]
[1733591196518,1.0486841,3998.7,3998.0,0.8013]
[1733591197513,1.78590813,3998.8,3998.0,0.8013]
[1733591197714,1.0486841,3998.7,3998.0,0.8013]
[1733591198155,1.0486841,3998.6,3998.0,0.8013]
[1733591198453,1.75048,3998.9,3998.0,0.8013]
[1733591198454,1.0486841,3998.7,3998.0,0.8013]
[1733591201558,1.0486841,3998.9,3998.0,0.82631179]
[1733591201742,1.0486841,3999.1,3998.4,0.8087]
[1733591202060,1.89607235,3999.2,3998.6,0.8087]
[1733591202356,1.89607235,3999.2,3998.7,0.8087]
[1733591202357,0.84738825,3999.2,3998.7,0.8087]
[1733591203726,0.84738825,3999.2,3998.7,1.064627]
[1733591203935,0.84738825,3999.2,3998.8,1.75052]
[1733591204145,0.84738825,3999.2,3998.9,0.8087]
[1733591204628,1.0486841,3999.9,3999.4,0.8087]
[1733591204854,1.0486841,3999.9,3999.5,0.8087]
[1733591205020,1.0486841,4000.0,3999.5,0.8087]
[1733591205537,3.8471982,4000.4,3999.5,0.8087]
[1733591205538,1.0486841,4000.1,3999.5,0.8087]
[1733591205914,1.0486841,4000.0,3999.5,0.8087]
[1733591207640,1.0486841,4000.1,3999.5,0.8087]
[1733591208860,1.0486841,3999.9,3999.2,0.8087]
[1733591209024,1.0486841,3999.8,3999.2,0.8087]
[1733591209367,2.7987841,3999.8,3999.2,0.8087]
[1733591209573,1.0486841,3999.7,3999.2,0.8087]
[1733591210451,1.0486841,3999.8,3999.2,0.8087]
[1733591210655,1.75013,3999.7,3999.2,0.8087]
[1733591210972,1.75022,3999.5,3999.2,0.8087]
[1733591211175,1.75022,3999.5,3998.1,0.8087]
[1733591211342,1.75022,3999.5,3998.4,0.8087]
[1733591212304,2.7989041,3999.5,3998.4,0.8087]
[1733591212448,1.75027,3999.4,3998.4,0.8087]
[1733591212772,1.75027,3999.4,3998.5,0.8255]
[1733591217432,1.0486841,3999.6,3998.5,0.8255]
[1733591217637,2.7988941,3999.6,3998.5,0.8255]
[1733591218047,1.0486841,3999.6,3998.5,0.8255]
[1733591218256,1.75022,3999.5,3998.5,0.8255]
[1733591218640,1.75022,3999.5,3998.5,0.36562504]
[1733591218843,1.75022,3999.5,3998.6,0.8255]
[1733591220033,0.51384403,3999.7,3998.6,0.8255]
[1733591220034,2.7988141,3999.7,3998.6,1.08002044]
[1733591220280,2.7988141,3999.7,3998.7,0.8255]
[1733591220431,1.75013,3999.7,3998.7,0.8255]
[1733591220637,1.0486841,3999.8,3998.9,0.8255]
[1733591221073,1.0486841,3999.9,3998.9,1.08002044]
[1733591221280,1.0486841,4000.2,3999.3,0.8255]
[1733591221489,2.7985541,4000.3,3999.3,0.8255]
[1733591221944,1.74991,4000.2,3999.3,0.8255]
[1733591222781,1.0486841,4000.3,3999.3,0.8255]
[1733591223130,1.74999,4000.1,3999.3,0.8255]
[1733591223327,1.75015,3999.7,3999.3,0.8255]
[1733591224486,1.0486841,3999.9,3999.3,0.8255]
[1733591224691,1.75022,3999.5,3999.3,0.8255]
[1733591225023,1.75022,3999.5,3998.3,2.83075044]
[1733591225024,2.7988141,3999.7,3998.4,0.8107]
[1733591225223,1.75039,3999.1,3998.4,0.99977204]
[1733591225531,0.8087,3999.4,3998.4,0.99977204]
[1733591225532,0.8087,3999.4,3998.4,0.8107]
[1733591226460,1.08002044,3999.2,3998.4,0.8107]
[1733591226661,1.75052,3998.8,3998.4,0.8107]
[1733591227567,1.08002044,3999.2,3998.4,0.8107]
[1733591227731,1.75039,3999.1,3998.4,0.8107]
[1733591227942,1.75066,3998.5,3997.7,0.8107]
[1733591228554,1.7507,3998.4,3997.7,0.8107]
[1733591230526,0.8087,3998.7,3997.7,0.8107]
[1733591230527,1.75074,3998.3,3997.7,0.8107]
[1733591233994,0.8087,3998.7,3997.7,0.8107]
[1733591234143,1.75074,3998.4,3997.7,0.99977204]
[1733591234478,1.75072,3998.4,3997.7,0.99977204]
[1733591235545,1.75075,3998.3,3997.7,0.99977204]
[1733591236448,1.75079,3998.2,3997.7,0.99977204]
[1733591236657,1.75079,3998.2,3997.7,0.8107]
[1733591236982,1.75083,3998.1,3997.7,0.8107]
[1733591240196,1.88872044,3998.7,3997.5,0.8107]
[1733591240197,1.08002044,3998.3,3997.5,0.8107]
[1733591240341,1.75109,3997.5,3997.3,0.8107]
[1733591241044,1.75123,3997.2,3996.6,0.8107]
[1733591241243,0.8087,3997.6,3996.6,0.8107]
[1733591241479,1.17267204,3997.6,3996.6,0.8107]
[1733591242489,1.75119,3997.3,3996.6,0.8107]
[1733591244179,0.8178,3998.0,3996.9,1.08002044]
[1733591244380,1.75088,3998.0,3997.0,0.768]
[1733591244580,3.0,3998.3,3997.0,0.768]
[1733591244766,1.75083,3998.1,3997.2,0.768]
[1733591245082,3.0,3998.3,3997.2,0.768]
[1733591245083,1.08002044,3998.2,3997.2,0.768]
[1733591245245,1.75094,3997.9,3997.2,0.768]
[1733591246688,3.8178,3998.4,3997.2,0.768]
[1733591247683,1.7508,3998.2,3997.2,0.768]
[1733591247989,1.7508,3998.2,3997.4,0.768]
[1733591250102,0.8178,3998.4,3997.4,0.768]
[1733591250284,1.75088,3998.0,3997.4,0.768]